bitfinex/quotes_BTCUSD_20240605
["timestamp","ask_amount","ask_price","bid_price","bid_amount"]
[1717545601779,1.02727782,70594.0,70593.0,0.001946]
[1717545602323,0.55485282,70594.0,70593.0,0.083846]
[1717545602529,0.67071282,70594.0,70593.0,0.083846]
[1717545602732,0.60917035,70594.0,70593.0,0.001946]
[1717545602933,0.37323086,70594.0,70593.0,0.001946]
[1717545603138,0.43677863,70594.0,70593.0,0.001946]
[1717545603380,0.79011451,70594.0,70593.0,0.001946]
[1717545604826,0.76893819,70594.0,70593.0,0.001946]
[1717545604963,0.49764133,70594.0,70593.0,0.080846]
[1717545605166,0.49764133,70594.0,70593.0,0.001946]
[1717545605403,0.49764133,70594.0,70593.0,0.238046]
[1717545605626,0.14430124,70594.0,70593.0,0.238046]
[1717545606025,0.101934,70594.0,70593.0,0.238046]
[1717545606583,0.077074,70594.0,70593.0,0.238046]
[1717545606783,0.072074,70594.0,70593.0,0.39916493]
[1717545607373,0.073074,70594.0,70593.0,0.39816493]
[1717545607549,0.073074,70594.0,70593.0,0.42116493]
[1717545608333,0.076074,70594.0,70593.0,0.42116493]
[1717545608538,0.059074,70594.0,70593.0,0.42116493]
[1717545608744,0.069934,70594.0,70593.0,0.42116493]
[1717545608917,0.074934,70594.0,70593.0,0.39916493]
[1717545609144,0.081934,70594.0,70593.0,0.39916493]
[1717545609341,0.081934,70594.0,70593.0,0.254746]
[1717545609572,0.081934,70594.0,70593.0,0.018646]
[1717545609573,0.074934,70594.0,70593.0,0.018646]
[1717545609974,0.076934,70594.0,70593.0,0.018646]
[1717545610180,0.076934,70594.0,70593.0,0.017646]
[1717545610354,0.074934,70594.0,70593.0,0.000946]
[1717545610557,0.074934,70594.0,70593.0,0.001946]
[1717545610775,0.075934,70594.0,70593.0,0.001946]
[1717545611153,0.076934,70594.0,70593.0,0.002946]
[1717545611397,0.075934,70594.0,70593.0,0.000946]
[1717545611656,0.153334,70594.0,70593.0,0.000946]
[1717545612072,0.064074,70594.0,70593.0,0.000946]
[1717545612239,0.064074,70594.0,70593.0,0.244946]
[1717545612450,0.064074,70594.0,70593.0,0.38936493]
[1717545612451,0.078074,70594.0,70593.0,0.38936493]
[1717545613042,0.059074,70594.0,70593.0,0.41236493]
[1717545613247,0.059074,70594.0,70593.0,0.40606493]
[1717545613248,0.073074,70594.0,70593.0,0.40606493]
[1717545613467,0.083074,70594.0,70593.0,0.47346493]
[1717545613845,0.069074,70594.0,70593.0,0.40606493]
[1717545614207,0.086074,70594.0,70593.0,0.47346493]
[1717545614445,0.070074,70594.0,70593.0,0.47346493]
[1717545614918,0.095934,70594.0,70593.0,0.242646]
[1717545615123,0.095934,70594.0,70593.0,0.259346]
[1717545615355,0.098934,70594.0,70593.0,0.259346]
[1717545615532,0.087934,70594.0,70593.0,0.259346]
[1717545615846,0.091074,70594.0,70593.0,0.40376493]
[1717545616256,0.086074,70594.0,70593.0,0.40376493]
[1717545616460,0.086074,70594.0,70593.0,0.42676493]
[1717545616685,0.073074,70594.0,70593.0,0.42676493]
[1717545616858,0.059074,70594.0,70593.0,0.40376493]
[1717545617073,0.076074,70594.0,70593.0,0.40376493]
[1717545617635,0.090074,70594.0,70593.0,0.40376493]
[1717545617835,0.080074,70594.0,70593.0,0.41309237]
[1717545618172,0.090074,70594.0,70593.0,0.41309237]
[1717545618373,0.059074,70594.0,70593.0,0.41309237]
[1717545618929,0.073074,70594.0,70593.0,0.41309237]
[1717545619328,0.059074,70594.0,70593.0,0.41309237]
[1717545619571,0.073074,70594.0,70593.0,0.41309237]
[1717545619968,0.087074,70594.0,70593.0,0.41309237]
[1717545620169,0.073074,70594.0,70593.0,0.41309237]
[1717545620715,0.083074,70594.0,70593.0,0.41309237]
[1717545620915,0.073074,70594.0,70593.0,0.41309237]
[1717545621265,0.087074,70594.0,70593.0,0.41309237]
[1717545621466,0.068074,70594.0,70593.0,0.41309237]
[1717545621917,0.082074,70594.0,70593.0,0.41309237]
[1717545622494,0.068074,70594.0,70593.0,0.41309237]
[1717545623055,0.092074,70594.0,70593.0,0.41309237]
[1717545623229,0.078074,70594.0,70593.0,0.41309237]
[1717545623428,0.064074,70594.0,70593.0,0.41309237]
[1717545623815,0.076074,70594.0,70593.0,0.41309237]
[1717545624216,0.054074,70594.0,70593.0,0.41309237]
[1717545624651,0.064074,70594.0,70593.0,0.41309237]
[1717545624823,0.078074,70594.0,70593.0,0.41309237]
[1717545625226,0.064074,70594.0,70593.0,0.41309237]
[1717545625636,0.078074,70594.0,70593.0,0.41309237]
[1717545626248,0.064074,70594.0,70593.0,0.41309237]
[1717545626771,0.078074,70594.0,70593.0,0.41309237]
[1717545629136,0.07803082,70594.0,70593.0,0.41309237]
[1717545632525,0.77803082,70594.0,70593.0,0.41309237]
[1717545633898,0.77803082,70594.0,70593.0,0.43609237]
[1717545634360,0.77803082,70594.0,70593.0,0.72990293]
[1717545634560,0.77803082,70594.0,70593.0,0.82990293]
[1717545635110,0.76403082,70594.0,70593.0,0.82990293]
[1717545635518,0.76503082,70594.0,70593.0,0.82990293]
[1717545635981,0.75503082,70594.0,70593.0,0.82990293]
[1717545636370,0.75603082,70594.0,70593.0,0.83190293]
[1717545636584,0.75603082,70594.0,70593.0,1.12690293]
[1717545638496,0.75503082,70594.0,70593.0,1.12690293]
[1717545638940,0.75603082,70594.0,70593.0,1.12790293]
[1717545639150,0.75503082,70594.0,70593.0,1.12590293]
[1717545639351,0.75603082,70594.0,70593.0,1.13990293]
[1717545639803,0.75503082,70594.0,70593.0,1.12590293]
[1717545640007,0.75503082,70594.0,70593.0,1.20630293]
[1717545640580,0.75603082,70594.0,70593.0,1.21430293]
[1717545642934,0.24303082,70594.0,70593.0,1.21430293]
[1717545643167,0.00086,70604.0,70603.0,0.3117]
[1717545643465,0.00086,70604.0,70603.0,1.17152949]
[1717545643666,0.00086,70604.0,70603.0,1.18060846]
[1717545644270,0.00086,70604.0,70603.0,0.98060846]
[1717545644469,0.00186,70604.0,70603.0,0.98860846]
[1717545644686,0.00286,70604.0,70603.0,1.20260846]
[1717545648242,0.00286,70604.0,70603.0,1.00260846]
[1717545651829,0.00286,70604.0,70603.0,1.20260846]
[1717545652856,0.00286,70604.0,70603.0,1.00260846]
[1717545653435,0.00286,70604.0,70603.0,1.05929146]
[1717545654866,0.00286,70604.0,70603.0,1.07657729]
[1717545663410,0.00286,70604.0,70603.0,1.27657729]
[1717545666675,0.00086,70621.0,70620.0,0.0167]
[1717545666807,0.00086,70621.0,70620.0,0.59862949]
[1717545667010,0.00086,70621.0,70620.0,0.60752294]
[1717545667457,0.00086,70621.0,70620.0,0.70752294]
[1717545667823,0.00086,70621.0,70620.0,0.41371238]
[1717545668046,0.00086,70621.0,70620.0,0.70738754]
[1717545668648,0.00586,70621.0,70620.0,0.70838754]
[1717545668857,0.00586,70621.0,70620.0,1.10438754]
[1717545669068,0.00586,70621.0,70620.0,1.12538754]
[1717545669069,0.00086,70621.0,70620.0,1.12538754]
[1717545669423,0.00086,70621.0,70620.0,0.95338754]
[1717545670246,0.00086,70621.0,70620.0,1.15338754]
[1717545671773,0.00086,70621.0,70620.0,1.08598754]
[1717545671969,0.00086,70621.0,70620.0,1.15338754]
[1717545673864,0.00086,70621.0,70620.0,0.95338754]
[1717545675199,0.00086,70621.0,70620.0,1.15338754]
[1717545676230,0.00086,70621.0,70620.0,1.16999447]
[1717545677668,0.00086,70621.0,70620.0,0.96999447]
[1717545678232,0.00086,70621.0,70620.0,0.77569447]
[1717545678436,0.23196,70621.0,70620.0,0.77569447]
[1717545683025,0.23196,70621.0,70620.0,0.60829447]
[1717545683232,0.23196,70621.0,70620.0,0.50829447]
[1717545683427,0.23196,70621.0,70620.0,0.21461931]
[1717545683950,0.23196,70621.0,70620.0,0.19801238]
[1717545684353,0.24282,70621.0,70620.0,0.19801238]
[1717545685807,0.23196,70621.0,70620.0,0.26541238]
[1717545695139,0.23196,70621.0,70620.0,0.19801238]
[1717545695285,0.23196,70621.0,70620.0,0.26541238]
[1717545700528,0.00086,70621.0,70620.0,0.26541238]
[1717545700733,0.00086,70621.0,70620.0,0.59651238]
[1717545700988,0.00086,70621.0,70620.0,0.89017518]
[1717545707788,0.00086,70621.0,70620.0,1.88139218]
[1717545709925,0.00086,70621.0,70620.0,1.81399218]
[1717545710128,0.00086,70621.0,70620.0,1.88139218]
[1717545710528,0.00086,70621.0,70620.0,1.65029218]
[1717545710737,0.00086,70621.0,70620.0,1.58289218]
[1717545710914,0.00086,70621.0,70620.0,1.65029218]
[1717545711507,0.00086,70621.0,70620.0,1.67149433]
[1717545711912,0.00086,70621.0,70620.0,1.65029218]
[1717545714204,0.24126,70621.0,70620.0,1.29968718]
[1717545714371,0.24126,70621.0,70620.0,1.36708718]
[1717545716130,0.24126,70621.0,70620.0,1.29968718]
[1717545716334,0.24126,70621.0,70620.0,1.36708718]
[1717545717144,0.24126,70621.0,70620.0,1.29968718]
[1717545717348,0.24126,70621.0,70620.0,1.36708718]
[1717545719506,0.24126,70621.0,70620.0,1.29968718]
[1717545719829,0.24126,70621.0,70620.0,1.01648218]
[1717545720029,0.24126,70621.0,70620.0,0.72281938]
[1717545720712,0.25212,70621.0,70620.0,0.71898304]
[1717545720931,0.25712,70621.0,70620.0,0.33577804]
[1717545722504,0.24626,70621.0,70620.0,0.33577804]
[1717545722742,0.25712,70621.0,70620.0,0.33577804]
[1717545726059,0.24626,70621.0,70620.0,0.33577804]
[1717545726247,0.25712,70621.0,70620.0,0.33577804]
[1717545731316,0.25712,70621.0,70620.0,0.19417604]
[1717545731769,0.26712,70621.0,70620.0,0.19417604]
[1717545732187,0.25712,70621.0,70620.0,0.19417604]
[1717545733874,0.24626,70621.0,70620.0,0.19417604]
[1717545734079,0.25712,70621.0,70620.0,0.19417604]
[1717545734276,0.25712,70621.0,70620.0,0.19512204]
[1717545735312,0.26712,70621.0,70620.0,0.03783945]
[1717545735520,0.47612,70621.0,70620.0,0.05070311]
[1717545735729,0.47612,70621.0,70620.0,0.04180966]
[1717545736511,0.47612,70621.0,70620.0,0.028946]
[1717545736731,0.47612,70621.0,70604.0,0.01380966]
[1717545736732,0.17606,70605.0,70604.0,0.01380966]
[1717545736951,0.25326,70605.0,70604.0,0.01380966]
[1717545737174,0.26326,70605.0,70604.0,0.01380966]
[1717545737348,0.25326,70605.0,70604.0,0.02312818]
[1717545737739,0.25326,70605.0,70604.0,0.01380966]
[1717545738226,0.26326,70605.0,70604.0,0.01380966]
[1717545738680,0.26826,70605.0,70604.0,0.02308345]
[1717545739393,0.26826,70605.0,70604.0,0.01021979]
[1717545739600,0.27026,70605.0,70604.0,0.02308345]
[1717545740775,0.26026,70605.0,70604.0,0.01380966]
[1717545741530,0.27026,70605.0,70604.0,0.01380966]
[1717545741739,0.26026,70605.0,70604.0,0.01380966]
[1717545742537,0.2494,70605.0,70604.0,0.15822859]
[1717545742736,0.2494,70605.0,70604.0,0.36726359]
[1717545742737,0.012,70605.0,70604.0,0.36726359]
[1717545742952,0.012,70605.0,70604.0,0.37658211]
[1717545743116,0.007,70605.0,70604.0,0.37658211]
[1717545744118,0.002,70605.0,70604.0,0.37658211]
[1717545744298,0.004,70605.0,70604.0,0.37658211]
[1717545744496,0.004,70605.0,70604.0,0.65985211]
[1717545744701,0.002,70605.0,70604.0,0.65985211]
[1717545744930,0.01586,70612.0,70611.0,0.01286366]
[1717545745057,0.01586,70612.0,70611.0,0.15728259]
[1717545745260,0.01586,70612.0,70611.0,0.01286366]
[1717545745261,0.25786,70612.0,70611.0,0.01286366]
[1717545745493,0.01586,70609.0,70608.0,0.01286366]
[1717545745724,0.18016,70609.0,70608.0,0.01286366]
[1717545745922,0.18016,70609.0,70608.0,0.02213279]
[1717545746081,0.18016,70609.0,70608.0,0.01286366]
[1717545746275,0.19016,70609.0,70608.0,0.01286366]
[1717545746722,0.18016,70609.0,70608.0,0.01286366]
[1717545747339,0.18016,70609.0,70608.0,0.15449066]
[1717545748189,0.18116,70609.0,70608.0,0.16849066]
[1717545748955,0.18216,70609.0,70608.0,0.17649066]
[1717545749691,0.17716,70609.0,70608.0,0.17649066]
[1717545750112,0.1663,70609.0,70608.0,0.17649066]
[1717545750315,0.18216,70609.0,70608.0,0.17649066]
[1717545750528,0.18216,70609.0,70580.0,0.44069569]
[1717545750529,0.005,70584.0,70580.0,0.44069569]
[1717545750830,0.005,70584.0,70574.0,0.141694]
[1717545750831,0.005,70575.0,70574.0,0.141694]
[1717545750965,0.0758,70578.0,70571.0,0.002]
[1717545750966,0.01586,70573.0,70572.0,0.14441893]
[1717545752378,0.01786,70573.0,70572.0,0.14441893]
[1717545752586,0.01586,70573.0,70572.0,0.14441893]
[1717545752785,0.005,70573.0,70572.0,0.14441893]
[1717545753260,0.01586,70573.0,70572.0,0.14441893]
[1717545753674,0.011,70573.0,70572.0,0.14441893]
[1717545753848,0.011,70573.0,70572.0,0.24441893]
[1717545754070,0.014,70573.0,70572.0,0.24441893]
[1717545754241,0.005,70573.0,70572.0,0.24441893]
[1717545754439,0.01786,70573.0,70572.0,0.24441893]
[1717545754622,0.007,70573.0,70572.0,0.24441893]
[1717545754822,0.01786,70573.0,70572.0,0.14441893]
[1717545755083,0.01586,70573.0,70572.0,0.14441893]
[1717545755250,0.02486,70573.0,70572.0,0.14441893]
[1717545755451,0.02486,70573.0,70571.0,0.002]
[1717545755452,0.005,70572.0,70571.0,0.002]
[1717545755682,0.01586,70572.0,70571.0,0.14641893]
[1717545758163,0.02986,70572.0,70571.0,0.14641893]
[1717545758902,0.04386,70572.0,70571.0,0.14641893]
[1717545759738,0.02986,70572.0,70571.0,0.14641893]
[1717545759959,0.04386,70572.0,70571.0,0.14641893]
[1717545760339,0.185559,70572.0,70571.0,0.002]
[1717545760561,0.343959,70572.0,70571.0,0.002]
[1717545760975,0.353959,70572.0,70571.0,0.002]
[1717545761183,0.343959,70572.0,70571.0,0.002]
[1717545761512,0.353959,70572.0,70571.0,0.002]
[1717545761686,0.343959,70572.0,70571.0,0.002]
[1717545762166,0.353959,70572.0,70571.0,0.002]
[1717545763810,0.343959,70572.0,70571.0,0.002]
[1717545766088,0.20226,70572.0,70571.0,0.002]
[1717545767128,0.20226,70572.0,70571.0,0.002946]
[1717545769402,0.20226,70572.0,70571.0,0.00972531]
[1717545775939,0.21226,70572.0,70571.0,0.002946]
[1717545776779,0.343959,70572.0,70571.0,0.002946]
[1717545780542,0.353959,70572.0,70571.0,0.002946]
[1717545782526,0.437259,70572.0,70571.0,0.002946]
[1717545782828,0.720657,70572.0,70571.0,0.002946]
[1717545783601,0.706657,70572.0,70571.0,0.002946]
[1717545784012,0.692657,70572.0,70571.0,0.002946]
[1717545784403,0.706657,70572.0,70571.0,0.002946]
[1717545784815,0.72851578,70572.0,70571.0,0.002946]
[1717545785192,0.706657,70572.0,70571.0,0.002946]
[1717545785395,0.413259,70572.0,70571.0,0.002946]
[1717545785604,0.427259,70572.0,70571.0,0.002946]
[1717545785818,0.437259,70572.0,70571.0,0.002946]
[1717545789825,0.504759,70572.0,70571.0,0.002946]
[1717545791462,0.52661946,70572.0,70571.0,0.002946]
[1717545795176,0.504759,70572.0,70571.0,0.002946]
[1717545796903,0.427259,70572.0,70571.0,0.002946]
[1717545797244,0.437259,70572.0,70571.0,0.002946]
[1717545798277,0.47948543,70572.0,70571.0,0.002946]
[1717545798895,0.437259,70572.0,70571.0,0.002946]
[1717545800001,0.47971278,70572.0,70571.0,0.002946]
[1717545802235,0.437259,70572.0,70571.0,0.002946]
[1717545802459,0.47972308,70572.0,70571.0,0.002946]
[1717545802662,0.437259,70572.0,70571.0,0.002946]
[1717545803106,0.47972587,70572.0,70571.0,0.002946]
[1717545803330,0.437259,70572.0,70571.0,0.002946]
[1717545806366,0.50059865,70572.0,70571.0,0.002946]
[1717545806923,0.71325108,70572.0,70571.0,0.002946]
[1717545807136,0.45920589,70572.0,70571.0,0.002946]
[1717545807365,0.50096676,70572.0,70571.0,0.002946]
[1717545808261,0.437259,70572.0,70571.0,0.002946]
[1717545808508,0.5009647,70572.0,70571.0,0.002946]
[1717545808710,0.437259,70572.0,70571.0,0.002946]
[1717545809263,0.195559,70572.0,70571.0,0.002946]
[1717545809634,0.18632962,70572.0,70571.0,0.236646]
[1717545809847,0.133,70572.0,70571.0,0.236646]
[1717545810075,0.133,70572.0,70571.0,0.59026593]
[1717545810665,0.128,70572.0,70571.0,0.59026593]
[1717545810881,0.114,70572.0,70571.0,0.59026593]
[1717545811096,0.11186,70572.0,70571.0,0.59126593]
[1717545811312,0.11286,70572.0,70571.0,0.59126593]
[1717545811748,0.102,70572.0,70571.0,0.59126593]
[1717545812360,0.11286,70572.0,70571.0,0.59126593]
[1717545813382,0.11786,70572.0,70571.0,0.145647]
[1717545818257,0.102,70572.0,70571.0,0.44236593]
[1717545818468,0.107,70572.0,70571.0,0.51786593]
[1717545818682,0.11786,70572.0,70571.0,0.51786593]
[1717545818880,0.107,70572.0,70571.0,0.51786593]
[1717545819269,0.11786,70572.0,70571.0,0.51786593]
[1717545824376,0.107,70572.0,70571.0,0.51786593]
[1717545825610,0.11786,70572.0,70571.0,0.51786593]
[1717545825808,0.107,70572.0,70571.0,0.51786593]
[1717545834053,0.102,70572.0,70571.0,0.51786593]
[1717545835119,0.102,70572.0,70571.0,0.80126793]
[1717545836723,0.102,70572.0,70571.0,0.86876793]
[1717545838947,0.102,70572.0,70571.0,1.63057193]
[1717545839124,0.102,70572.0,70571.0,1.83057193]
[1717545839755,0.102,70572.0,70571.0,1.85357193]
[1717545839936,0.101,70572.0,70571.0,1.90955007]
[1717545840132,0.1,70572.0,70571.0,1.90855007]
[1717545840339,0.1,70572.0,70571.0,2.01702851]
[1717545840340,0.102,70572.0,70571.0,2.01702851]
[1717545840777,0.101,70572.0,70571.0,2.01502851]
[1717545840922,0.101,70572.0,70571.0,2.01702851]
[1717545841126,0.102,70572.0,70571.0,1.91155007]
[1717545841528,0.102,70572.0,70571.0,2.01731537]
[1717545841939,0.102,70572.0,70571.0,1.91155007]
[1717545842245,0.101,70572.0,70571.0,1.91055007]
[1717545842454,0.102,70572.0,70571.0,1.92455007]
[1717545842999,0.102,70572.0,70571.0,2.03027892]
[1717545843202,0.102,70572.0,70571.0,2.00910773]
[1717545843416,0.102,70572.0,70571.0,1.86857193]
[1717545843666,0.102,70572.0,70571.0,1.92454604]
[1717545844295,0.102,70572.0,70571.0,2.00907886]
[1717545844920,0.102,70572.0,70571.0,2.0264381]
[1717545846675,0.102,70572.0,70571.0,1.88593117]
[1717545847524,0.102,70572.0,70571.0,1.97596579]
[1717545847946,0.102,70572.0,70571.0,1.89143117]
[1717545848370,0.102,70572.0,70571.0,1.95479339]
[1717545848584,0.102,70572.0,70571.0,1.89143117]
[1717545848967,0.102,70572.0,70571.0,1.95479265]
[1717545850436,0.102,70572.0,70571.0,1.89143117]
[1717545850667,0.102,70572.0,70571.0,1.95479265]
[1717545851135,0.102,70572.0,70571.0,1.89143117]
[1717545852463,0.102,70572.0,70571.0,1.95478962]
[1717545852626,0.102,70572.0,70571.0,1.89143117]
[1717545853037,0.102,70572.0,70571.0,1.95478962]
[1717545853625,0.002,70572.0,70571.0,1.95478962]
[1717545855300,0.002,70572.0,70571.0,1.89143117]
[1717545857169,0.002,70572.0,70571.0,1.95482289]
[1717545857810,0.002,70572.0,70571.0,1.75482289]
[1717545858009,0.002,70572.0,70571.0,1.81152789]
[1717545858839,0.002,70572.0,70571.0,2.01152789]
[1717545859372,0.002,70572.0,70571.0,1.68063617]
[1717545859601,0.002,70572.0,70571.0,1.74813617]
[1717545860338,0.002,70572.0,70571.0,1.75875401]
[1717545861356,0.002,70572.0,70571.0,1.74813617]
[1717545861785,0.002,70572.0,70571.0,1.39683617]
[1717545863198,0.002,70572.0,70571.0,1.59683617]
[1717545863414,0.002,70572.0,70571.0,1.63910147]
[1717545863897,0.002,70572.0,70571.0,1.59683617]
[1717545864800,0.002,70572.0,70571.0,1.39683617]
[1717545867865,0.002,70572.0,70571.0,1.43914516]
[1717545869308,0.002,70572.0,70571.0,1.39683617]
[1717545869464,0.002,70572.0,70571.0,1.43915665]
[1717545870353,0.002,70572.0,70571.0,1.45288215]
[1717545870761,0.002,70572.0,70571.0,1.65288215]
[1717545870966,0.002,70572.0,70571.0,1.71636797]
[1717545871369,0.002,70572.0,70571.0,1.51636797]
[1717545873589,0.002,70572.0,70571.0,1.45288215]
[1717545873761,0.002,70572.0,70571.0,1.51638918]
[1717545874208,0.002,70572.0,70571.0,1.45288215]
[1717545875327,0.002,70572.0,70571.0,1.53752991]
[1717545875577,0.002,70572.0,70571.0,1.65288215]
[1717545875802,0.002,70572.0,70571.0,1.73752991]
[1717545877299,0.002,70572.0,70571.0,1.65288215]
[1717545878061,0.002,70572.0,70571.0,1.7375791]
[1717545878266,0.002,70572.0,70571.0,1.45288215]
[1717545878477,0.002,70572.0,70571.0,1.55869185]
[1717545878676,0.002,70572.0,70571.0,1.65288215]
[1717545878872,0.002,70572.0,70571.0,1.75869185]
[1717545879501,0.002,70572.0,70571.0,1.77088215]
[1717545879666,0.002,70572.0,70571.0,2.01228215]
[1717545880457,0.1,70578.0,70577.0,1.086823]
[1717545880645,0.1,70578.0,70577.0,1.5607252]
[1717545880878,0.1,70578.0,70577.0,1.45478791]
[1717545881193,0.1,70578.0,70577.0,1.57504549]
[1717545881392,0.1,70578.0,70577.0,1.4691082]
[1717545881856,0.1,70578.0,70577.0,1.6691082]
[1717545882750,0.101,70578.0,70577.0,1.6971082]
[1717545883370,0.101,70578.0,70577.0,1.7782082]
[1717545883797,0.101,70578.0,70577.0,1.5782082]
[1717545884378,0.101,70578.0,70577.0,1.7782082]
[1717545884657,0.101,70578.0,70577.0,1.5782082]
[1717545885814,0.101,70578.0,70577.0,1.56388791]
[1717545887461,0.101,70578.0,70577.0,1.48278791]
[1717545887840,0.101,70578.0,70577.0,1.68278791]
[1717545888008,0.101,70578.0,70577.0,1.48278791]
[1717545888205,0.101,70578.0,70577.0,1.68278791]
[1717545889781,0.101,70578.0,70577.0,1.48278791]
[1717545889981,0.101,70578.0,70577.0,1.68278791]
[1717545890367,0.101,70578.0,70577.0,1.48278791]
[1717545895387,0.101,70578.0,70577.0,1.77660261]
[1717545898728,0.101,70578.0,70577.0,1.70910261]
[1717545898929,0.101,70578.0,70577.0,1.68160261]
[1717545898930,0.3358,70578.0,70577.0,1.68160261]
[1717545899140,0.3358,70578.0,70577.0,1.62555663]
[1717545899339,0.3358,70578.0,70577.0,1.7103786]
[1717545899565,0.3358,70578.0,70577.0,1.7113246]
[1717545900582,0.3358,70578.0,70577.0,1.0770686]
[1717545900791,0.3358,70578.0,70577.0,1.05974663]
[1717545901412,0.34666,70578.0,70577.0,0.99224663]
[1717545901616,0.34666,70578.0,70577.0,1.05974663]
[1717545902044,0.34666,70578.0,70577.0,1.04574663]
[1717545902279,0.3348,70578.0,70577.0,1.04574663]
[1717545902478,0.3358,70578.0,70577.0,0.99224663]
[1717545902693,0.3358,70578.0,70577.0,1.04574663]
[1717545902694,0.34666,70578.0,70577.0,1.04574663]
[1717545903666,0.34566,70578.0,70577.0,1.04574663]
[1717545903865,0.34666,70578.0,70577.0,1.05974663]
[1717545904320,0.34666,70578.0,70577.0,0.60886863]
[1717545904321,0.35166,70578.0,70577.0,0.60886863]
[1717545904590,0.35166,70578.0,70577.0,0.31505393]
[1717545906598,0.35166,70578.0,70577.0,0.028946]
[1717545907392,0.35166,70578.0,70577.0,0.38255393]
[1717545908232,0.3408,70578.0,70577.0,0.38255393]
[1717545908913,0.3358,70578.0,70577.0,0.38255393]
[1717545909121,0.3408,70578.0,70577.0,0.38255393]
[1717545909983,0.35166,70578.0,70577.0,0.38255393]
[1717545910172,0.3408,70578.0,70577.0,0.38255393]
[1717545912334,0.35166,70578.0,70577.0,0.38255393]
[1717545913088,0.3408,70578.0,70577.0,0.38255393]
[1717545914739,0.3358,70578.0,70577.0,0.38255393]
[1717545917085,0.3358,70578.0,70577.0,0.66593193]
[1717545918894,0.3312,70578.0,70577.0,0.66593193]
[1717545922980,0.3312,70578.0,70577.0,0.95979399]
[1717545923603,0.3312,70578.0,70577.0,0.66593193]
[1717545924012,0.34206,70578.0,70577.0,0.66593193]
[1717545924214,0.34206,70578.0,70577.0,0.59843193]
[1717545924413,0.34206,70578.0,70577.0,0.66593193]
[1717545925780,0.3312,70578.0,70577.0,0.66593193]
[1717545925995,0.34206,70578.0,70577.0,0.66593193]
[1717545927359,0.34206,70578.0,70577.0,0.95980848]
[1717545927685,0.34206,70578.0,70577.0,0.66593193]
[1717545928313,0.34206,70578.0,70577.0,0.95980963]
[1717545929459,0.34206,70578.0,70577.0,0.67643163]
[1717545930602,0.34206,70578.0,70577.0,0.60893163]
[1717545930830,0.34206,70578.0,70577.0,0.67643163]
[1717545931007,0.34706,70578.0,70577.0,0.60893163]
[1717545931426,0.34706,70578.0,70577.0,0.31505393]
[1717545936722,0.3312,70578.0,70577.0,0.66593193]
[1717545936923,0.3312,70578.0,70577.0,0.78917799]
[1717545936924,0.2312,70578.0,70577.0,0.78917799]
[1717545937177,0.001,70578.0,70577.0,0.78917799]
[1717545937522,0.001,70578.0,70577.0,0.93086699]
[1717545938416,0.001,70578.0,70577.0,1.21424499]
[1717545942230,0.001,70578.0,70577.0,1.21424497]
[1717545950393,0.001,70578.0,70577.0,1.2314802]
[1717545950812,0.001,70578.0,70577.0,0.93759914]
[1717545951367,0.001,70578.0,70577.0,1.23146699]
[1717545961057,0.001,70578.0,70577.0,1.16396699]
[1717545961259,0.01186,70578.0,70577.0,1.23146699]
[1717545961489,0.001,70578.0,70577.0,1.23146699]
[1717545963219,0.001,70578.0,70577.0,1.14673176]
[1717545963391,0.2311,70578.0,70577.0,1.21423176]
[1717545963582,0.2311,70578.0,70577.0,1.14673176]
[1717545963780,0.2311,70578.0,70577.0,1.21423176]
[1717545964717,0.24196,70578.0,70577.0,1.21423176]
[1717545965213,0.24196,70578.0,70577.0,0.93085376]
[1717545965514,0.2311,70578.0,70577.0,0.93085376]
[1717545967169,0.24196,70578.0,70577.0,0.93085376]
[1717545967509,0.24196,70578.0,70577.0,0.93179976]
[1717545967929,0.24282,70578.0,70577.0,0.93179976]
[1717545969486,0.23196,70578.0,70577.0,0.93179976]
[1717545970378,0.24282,70578.0,70577.0,0.93179976]
[1717545970596,0.24282,70578.0,70577.0,0.86429976]
[1717545970772,0.23196,70578.0,70577.0,0.93179976]
[1717545971398,0.24282,70578.0,70577.0,0.93179976]
[1717545971743,0.23196,70578.0,70577.0,0.93179976]
[1717545975058,0.24282,70578.0,70577.0,0.93179976]
[1717545977006,0.23196,70578.0,70577.0,0.93179976]
[1717545982235,0.23196,70578.0,70577.0,0.97425523]
[1717545983064,0.00186,70578.0,70577.0,0.97425523]
[1717545986250,0.00186,70578.0,70577.0,0.93179976]
[1717545989170,0.00186,70578.0,70577.0,0.97426759]
[1717545989641,0.00186,70578.0,70577.0,0.93179976]
[1717545989865,0.00186,70578.0,70577.0,0.99548297]
[1717545994949,0.00186,70578.0,70577.0,0.99548847]
[1717545995168,0.00186,70578.0,70577.0,0.92798847]
[1717545995610,0.00186,70578.0,70577.0,0.99548847]
[1717546001300,0.00186,70578.0,70577.0,1.27886647]
[1717546001507,0.00186,70578.0,70577.0,1.54752561]
[1717546001711,0.00186,70578.0,70577.0,1.44137776]
[1717546001914,0.00186,70578.0,70577.0,1.54752561]
[1717546002328,0.00186,70578.0,70577.0,1.44137776]
[1717546002955,0.00186,70578.0,70577.0,1.52625011]
[1717546003414,0.00186,70578.0,70577.0,1.44137776]
[1717546004904,0.00186,70578.0,70577.0,0.86429976]
[1717546005150,0.25852,70578.0,70577.0,0.99545102]
[1717546005367,0.24766,70578.0,70577.0,0.99545102]
[1717546005605,0.24766,70578.0,70577.0,0.93179976]
[1717546010484,0.24766,70578.0,70577.0,0.97424071]
[1717546010955,0.24766,70578.0,70577.0,0.9742416]
[1717546012419,0.25852,70578.0,70577.0,0.9742416]
[1717546012858,0.25852,70578.0,70577.0,0.93179976]
[1717546013483,0.24766,70578.0,70577.0,0.93179976]
[1717546013694,0.00186,70578.0,70577.0,1.2156416]
[1717546013906,0.00186,70578.0,70577.0,1.25808167]
[1717546014120,0.00186,70578.0,70577.0,1.17319976]
[1717546014558,0.00186,70578.0,70577.0,1.45657776]
[1717546018860,0.00186,70578.0,70577.0,1.27882866]